[Event "Titled Tuesday Blitz October 31 Early 2023"]
[White "Saydaliev, Saidakbar"]
[Black "Tsyhanchuk, Stanislav"]
[WhiteFideId "14203693"]
[BlackFideId "13505130"]
[WhiteElo "2778"]
[BlackElo "2436"]
[Result "1-0"]
[Round "1"]
[TimeControl "180+1"]
[Date "2023.10.31"]
[WhiteClock "0:01:09"]
[BlackClock "0:00:04"]
[Board "63"]

1. e4 {[%clk 0:01:57]}  c5 {[%clk 0:02:59]} 2. Nf3 {[%clk 0:01:57]}  g6 {[%clk 0:02:57]} 3. d4 {[%clk 0:01:56]}  cxd4 {[%clk 0:02:58]} 4. Nxd4 {[%clk 0:01:57]}  Bg7 {[%clk 0:02:59]} 5. c4 {[%clk 0:01:57]}  Nc6 {[%clk 0:02:59]} 6. Nc2 {[%clk 0:01:57]}  Nf6 {[%clk 0:02:54]} 7. Nc3 {[%clk 0:01:57]}  O-O {[%clk 0:02:53]} 8. Be3 {[%clk 0:01:57]}  d6 {[%clk 0:02:52]} 9. Be2 {[%clk 0:01:56]}  Be6 {[%clk 0:02:52]} 10. O-O {[%clk 0:01:56]}  Rc8 {[%clk 0:02:53]} 11. Rc1 {[%clk 0:01:55]}  a6 {[%clk 0:02:46]} 12. Qd2 {[%clk 0:01:42]}  Ne5 {[%clk 0:02:19]} 13. b3 {[%clk 0:01:43]}  b5 {[%clk 0:02:19]} 14. cxb5 {[%clk 0:01:40]}  axb5 {[%clk 0:02:09]} 15. f3 {[%clk 0:01:38]}  Rxc3 {[%clk 0:01:17]} 16. Qxc3 {[%clk 0:01:37]}  Nxe4 {[%clk 0:01:16]} 17. Qe1 {[%clk 0:01:26]}  Nc5 {[%clk 0:01:02]} 18. Qd2 {[%clk 0:01:20]}  Bd7 {[%clk 0:00:44]} 19. Nb4 {[%clk 0:01:13]}  Nc6 {[%clk 0:00:25]} 20. Nxc6 {[%clk 0:01:09]}  Bxc6 {[%clk 0:00:26]} 21. b4 {[%clk 0:01:10]}  d5 {[%clk 0:00:12]} 22. Bxc5 {[%clk 0:01:08]}  d4 {[%clk 0:00:13]} 23. Bd3 {[%clk 0:01:06]}  Qd5 {[%clk 0:00:09]} 24. Be4 {[%clk 0:01:05]}  Qd7 {[%clk 0:00:09]} 25. Bxc6 {[%clk 0:01:06]}  Qxc6 {[%clk 0:00:10]} 26. Bxe7 {[%clk 0:01:06]}  Qd5 {[%clk 0:00:07]} 27. Bxf8 {[%clk 0:01:06]}  Bxf8 {[%clk 0:00:07]} 28. Rfd1 {[%clk 0:01:05]}  Bg7 {[%clk 0:00:06]} 29. Rc8+ {[%clk 0:01:05]}  Bf8 {[%clk 0:00:06]} 30. Qxd4 {[%clk 0:01:05]}  Qxd4+ {[%clk 0:00:07]} 31. Rxd4 {[%clk 0:01:06]}  Kg7 {[%clk 0:00:08]} 32. Rxf8 {[%clk 0:01:06]}  Kxf8 {[%clk 0:00:08]} 33. Rd5 {[%clk 0:01:07]}  Kg7 {[%clk 0:00:09]} 34. Rxb5 {[%clk 0:01:07]}  Kf6 {[%clk 0:00:10]} 35. a4 {[%clk 0:01:08]}  Ke6 {[%clk 0:00:11]} 36. a5 {[%clk 0:01:09]}  f6 {[%clk 0:00:04]} 37. Rb6+ {[%clk 0:01:09]} 1-0


[Site "https://www.chess.com"]

[Event "Titled Tuesday Blitz October 31 Early 2023"]
[White "Kostiukov, Alexandr"]
[Black "Ozen, Bahadir"]
[WhiteFideId "14108100"]
[BlackFideId "6337058"]
[WhiteElo "2433"]
[BlackElo "2778"]
[Result "0-1"]
[Round "1"]
[TimeControl "180+1"]
[Date "2023.10.31"]
[WhiteClock "0:00:06"]
[BlackClock "0:01:10"]
[Board "64"]

1. g3 {[%clk 0:02:46]}  g6 {[%clk 0:02:59]} 2. Bg2 {[%clk 0:02:47]}  Bg7 {[%clk 0:03:00]} 3. c4 {[%clk 0:02:46]}  c6 {[%clk 0:02:57]} 4. Nf3 {[%clk 0:02:47]}  Nf6 {[%clk 0:02:54]} 5. O-O {[%clk 0:02:48]}  O-O {[%clk 0:02:54]} 6. d4 {[%clk 0:02:47]}  d6 {[%clk 0:02:54]} 7. Nc3 {[%clk 0:02:46]}  Bf5 {[%clk 0:02:54]} 8. Nh4 {[%clk 0:02:43]}  Be6 {[%clk 0:02:54]} 9. d5 {[%clk 0:02:42]}  cxd5 {[%clk 0:02:55]} 10. cxd5 {[%clk 0:02:42]}  Bd7 {[%clk 0:02:56]} 11. Qb3 {[%clk 0:02:37]}  Na6 {[%clk 0:02:40]} 12. Qxb7 {[%clk 0:02:23]}  Nc5 {[%clk 0:02:39]} 13. Qb4 {[%clk 0:02:21]}  Rb8 {[%clk 0:02:40]} 14. Qc4 {[%clk 0:02:01]}  Qb6 {[%clk 0:02:39]} 15. Rb1 {[%clk 0:01:53]}  Rfc8 {[%clk 0:02:38]} 16. Qf4 {[%clk 0:01:40]}  Ng4 {[%clk 0:01:56]} 17. Bd2 {[%clk 0:01:26]}  a5 {[%clk 0:01:50]} 18. h3 {[%clk 0:01:16]}  Ne5 {[%clk 0:01:40]} 19. Rfc1 {[%clk 0:01:07]}  h6 {[%clk 0:01:37]} 20. Qe3 {[%clk 0:01:04]}  Nc4 {[%clk 0:01:36]} 21. Qf4 {[%clk 0:00:37]}  Nb3 {[%clk 0:01:11]} 22. axb3 {[%clk 0:00:29]}  g5 {[%clk 0:01:11]} 23. Qe4 {[%clk 0:00:15]}  Nxd2 {[%clk 0:01:11]} 24. Qxe7 {[%clk 0:00:15]}  Nxb1 {[%clk 0:01:11]} 25. Qxd7 {[%clk 0:00:14]}  Nxc3 {[%clk 0:01:11]} 26. bxc3 {[%clk 0:00:06]}  gxh4 {[%clk 0:01:10]} 0-1


[Site "https://www.chess.com"]

[Event "Titled Tuesday Blitz October 31 Early 2023"]
[White "crazy_m_attack"]
[Black "Komov, Roman"]
[BlackFideId "24175714"]
[WhiteElo "2431"]
[BlackElo "2775"]
[Result "0-1"]
[Round "1"]
[TimeControl "180+1"]
[Date "2023.10.31"]
[WhiteClock "0:01:34"]
[BlackClock "0:02:25"]
[Board "66"]

1. e4 {[%clk 0:03:00]}  c5 {[%clk 0:02:57]} 2. Nf3 {[%clk 0:03:00]}  d6 {[%clk 0:02:56]} 3. d4 {[%clk 0:03:01]}  cxd4 {[%clk 0:02:56]} 4. Nxd4 {[%clk 0:03:01]}  Nf6 {[%clk 0:02:57]} 5. Nc3 {[%clk 0:03:01]}  Nc6 {[%clk 0:02:57]} 6. Be2 {[%clk 0:03:00]}  e5 {[%clk 0:02:57]} 7. Nf3 {[%clk 0:03:00]}  Be7 {[%clk 0:02:56]} 8. Bg5 {[%clk 0:02:59]}  O-O {[%clk 0:02:56]} 9. O-O {[%clk 0:02:58]}  Be6 {[%clk 0:02:56]} 10. Bxf6 {[%clk 0:02:58]}  Bxf6 {[%clk 0:02:57]} 11. Nd5 {[%clk 0:02:59]}  Rc8 {[%clk 0:02:58]} 12. c3 {[%clk 0:02:58]}  g6 {[%clk 0:02:54]} 13. Nxf6+ {[%clk 0:02:44]}  Qxf6 {[%clk 0:02:55]} 14. Qxd6 {[%clk 0:02:45]}  Rfd8 {[%clk 0:02:56]} 15. Qa3 {[%clk 0:02:44]}  Qf4 {[%clk 0:02:56]} 16. Qa4 {[%clk 0:02:38]}  Bf5 {[%clk 0:02:44]} 17. g3 {[%clk 0:02:11]}  Qxe4 {[%clk 0:02:43]} 18. Qxe4 {[%clk 0:02:11]}  Bxe4 {[%clk 0:02:44]} 19. Rad1 {[%clk 0:02:09]}  f6 {[%clk 0:02:36]} 20. Bc4+ {[%clk 0:02:03]}  Kf8 {[%clk 0:02:33]} 21. Nd2 {[%clk 0:02:02]}  Bc2 {[%clk 0:02:32]} 22. Bb3 {[%clk 0:01:47]}  Bxd1 {[%clk 0:02:32]} 23. Rxd1 {[%clk 0:01:48]}  Na5 {[%clk 0:02:30]} 24. Bc2 {[%clk 0:01:36]}  Nc4 {[%clk 0:02:29]} 25. Nxc4 {[%clk 0:01:36]}  Rxd1+ {[%clk 0:02:30]} 26. Bxd1 {[%clk 0:01:37]}  Rxc4 {[%clk 0:02:30]} 27. Kf1 {[%clk 0:01:37]}  Ke7 {[%clk 0:02:30]} 28. Ke2 {[%clk 0:01:37]}  e4 {[%clk 0:02:29]} 29. Bb3 {[%clk 0:01:37]}  Rc8 {[%clk 0:02:26]} 30. Ke3 {[%clk 0:01:37]}  f5 {[%clk 0:02:27]} 31. Bd5 {[%clk 0:01:37]}  Kd6 {[%clk 0:02:25]} 32. h4 {[%clk 0:01:34]}  Kxd5 {[%clk 0:02:25]} 0-1


[Site "https://www.chess.com"]

[Event "Titled Tuesday Blitz October 31 Early 2023"]
[White "Samsonkin, Artiom"]
[Black "Kuznetsova, Olga"]
[WhiteFideId "13503111"]
[BlackFideId "4191323"]
[WhiteElo "2775"]
[BlackElo "2430"]
[Result "1-0"]
[Round "1"]
[TimeControl "180+1"]
[Date "2023.10.31"]
[WhiteClock "0:01:38"]
[BlackClock "0:00:55"]
[Board "67"]

1. e4 {[%clk 0:02:43]}  e6 {[%clk 0:02:59]} 2. d4 {[%clk 0:02:43]}  d5 {[%clk 0:02:59]} 3. Nd2 {[%clk 0:02:44]}  dxe4 {[%clk 0:02:59]} 4. Nxe4 {[%clk 0:02:44]}  Nd7 {[%clk 0:03:00]} 5. Nf3 {[%clk 0:02:44]}  Ngf6 {[%clk 0:03:00]} 6. Nxf6+ {[%clk 0:02:39]}  Nxf6 {[%clk 0:03:00]} 7. Ne5 {[%clk 0:02:31]}  Bd6 {[%clk 0:02:54]} 8. Bd3 {[%clk 0:02:29]}  O-O {[%clk 0:02:51]} 9. Bg5 {[%clk 0:02:27]}  h6 {[%clk 0:02:45]} 10. Bh4 {[%clk 0:02:27]}  c5 {[%clk 0:02:46]} 11. Qe2 {[%clk 0:02:18]}  cxd4 {[%clk 0:02:39]} 12. O-O-O {[%clk 0:02:19]}  Be7 {[%clk 0:01:39]} 13. Kb1 {[%clk 0:02:13]}  Qa5 {[%clk 0:01:39]} 14. f4 {[%clk 0:02:03]}  Rd8 {[%clk 0:01:38]} 15. g4 {[%clk 0:02:03]}  Nd5 {[%clk 0:01:35]} 16. Bxe7 {[%clk 0:02:00]}  Nxe7 {[%clk 0:01:34]} 17. g5 {[%clk 0:01:55]}  hxg5 {[%clk 0:01:24]} 18. fxg5 {[%clk 0:01:54]}  Rd5 {[%clk 0:01:24]} 19. Rde1 {[%clk 0:01:46]}  Bd7 {[%clk 0:01:19]} 20. g6 {[%clk 0:01:39]}  fxg6 {[%clk 0:00:55]} 21. Nxd7 {[%clk 0:01:38]} 1-0


[Site "https://www.chess.com"]

[Event "Titled Tuesday Blitz October 31 Early 2023"]
[White "Sokolovsky, Yahli"]
[Black "Kahlert, Thomas"]
[WhiteFideId "2820242"]
[BlackFideId "4625242"]
[WhiteElo "2768"]
[BlackElo "2426"]
[Result "1-0"]
[Round "1"]
[TimeControl "180+1"]
[Date "2023.10.31"]
[WhiteClock "0:00:08"]
[BlackClock "0:00:14"]
[Board "69"]

1. b3 {[%clk 0:03:00]}  e5 {[%clk 0:02:58]} 2. Bb2 {[%clk 0:03:01]}  Nc6 {[%clk 0:02:57]} 3. e3 {[%clk 0:03:02]}  Nf6 {[%clk 0:02:51]} 4. Nf3 {[%clk 0:03:02]}  d6 {[%clk 0:02:49]} 5. c4 {[%clk 0:03:01]}  g6 {[%clk 0:02:48]} 6. d4 {[%clk 0:03:00]}  exd4 {[%clk 0:02:47]} 7. exd4 {[%clk 0:03:00]}  Bg7 {[%clk 0:02:46]} 8. d5 {[%clk 0:02:59]}  Ne7 {[%clk 0:02:45]} 9. Be2 {[%clk 0:02:56]}  O-O {[%clk 0:02:44]} 10. O-O {[%clk 0:02:56]}  Bg4 {[%clk 0:02:39]} 11. Nbd2 {[%clk 0:02:52]}  Qd7 {[%clk 0:02:38]} 12. h3 {[%clk 0:02:52]}  Bxf3 {[%clk 0:02:37]} 13. Nxf3 {[%clk 0:02:53]}  Rfe8 {[%clk 0:02:33]} 14. Qc2 {[%clk 0:02:50]}  h5 {[%clk 0:02:29]} 15. Rfe1 {[%clk 0:02:50]}  Nf5 {[%clk 0:02:29]} 16. Bd3 {[%clk 0:02:49]}  Nh6 {[%clk 0:02:26]} 17. Qd2 {[%clk 0:02:19]}  Rxe1+ {[%clk 0:02:24]} 18. Rxe1 {[%clk 0:02:19]}  Nf5 {[%clk 0:02:20]} 19. Re2 {[%clk 0:01:21]}  Re8 {[%clk 0:02:19]} 20. Qe1 {[%clk 0:01:13]}  Rxe2 {[%clk 0:02:19]} 21. Qxe2 {[%clk 0:01:14]}  Qe7 {[%clk 0:02:12]} 22. Qxe7 {[%clk 0:00:58]}  Nxe7 {[%clk 0:02:13]} 23. Bd4 {[%clk 0:00:52]}  a6 {[%clk 0:02:08]} 24. Kf1 {[%clk 0:00:52]}  Nd7 {[%clk 0:02:08]} 25. Be3 {[%clk 0:00:50]}  Ne5 {[%clk 0:02:06]} 26. Nxe5 {[%clk 0:00:48]}  Bxe5 {[%clk 0:02:07]} 27. b4 {[%clk 0:00:46]}  b6 {[%clk 0:01:58]} 28. Bd2 {[%clk 0:00:34]}  Bd4 {[%clk 0:01:53]} 29. Ke2 {[%clk 0:00:34]}  Kf8 {[%clk 0:01:53]} 30. f3 {[%clk 0:00:34]}  Ke8 {[%clk 0:01:52]} 31. g4 {[%clk 0:00:34]}  hxg4 {[%clk 0:01:51]} 32. fxg4 {[%clk 0:00:35]}  Kf8 {[%clk 0:01:37]} 33. a4 {[%clk 0:00:33]}  Kg7 {[%clk 0:01:31]} 34. Kf3 {[%clk 0:00:33]}  f5 {[%clk 0:01:28]} 35. h4 {[%clk 0:00:27]}  fxg4+ {[%clk 0:01:25]} 36. Kxg4 {[%clk 0:00:28]}  Bf6 {[%clk 0:01:19]} 37. a5 {[%clk 0:00:25]}  bxa5 {[%clk 0:01:18]} 38. bxa5 {[%clk 0:00:26]}  Ng8 {[%clk 0:01:13]} 39. Be1 {[%clk 0:00:17]}  Nh6+ {[%clk 0:01:13]} 40. Kf4 {[%clk 0:00:17]}  Be5+ {[%clk 0:01:13]} 41. Ke4 {[%clk 0:00:16]}  Kf6 {[%clk 0:01:04]} 42. c5 {[%clk 0:00:16]}  dxc5 {[%clk 0:00:57]} 43. Bxa6 {[%clk 0:00:15]}  Nf7 {[%clk 0:00:54]} 44. Kf3 {[%clk 0:00:10]}  Nd6 {[%clk 0:00:52]} 45. Be2 {[%clk 0:00:08]}  c4 {[%clk 0:00:49]} 46. Bf2 {[%clk 0:00:09]}  Ke7 {[%clk 0:00:41]} 47. a6 {[%clk 0:00:09]}  Nc8 {[%clk 0:00:36]} 48. a7 {[%clk 0:00:09]}  Nxa7 {[%clk 0:00:37]} 49. Bxa7 {[%clk 0:00:10]}  Kd6 {[%clk 0:00:37]} 50. Ke4 {[%clk 0:00:10]}  c3 {[%clk 0:00:35]} 51. Bd3 {[%clk 0:00:11]}  Bf6 {[%clk 0:00:33]} 52. Bf2 {[%clk 0:00:11]}  c6 {[%clk 0:00:30]} 53. Bg3+ {[%clk 0:00:10]}  Kc5 {[%clk 0:00:28]} 54. d6 {[%clk 0:00:11]}  Kb4 {[%clk 0:00:25]} 55. Bc2 {[%clk 0:00:12]}  Kc4 {[%clk 0:00:24]} 56. d7 {[%clk 0:00:12]}  Bd8 {[%clk 0:00:21]} 57. Bf4 {[%clk 0:00:08]}  Kc5 {[%clk 0:00:14]} 58. Bg5 {[%clk 0:00:08]} 1-0


[Site "https://www.chess.com"]

[Event "Titled Tuesday Blitz October 31 Early 2023"]
[White "Leyva Rivera, Yunier"]
[Black "Weetik, Vjacheslav"]
[WhiteFideId "3505065"]
[BlackFideId "4153472"]
[WhiteElo "2424"]
[BlackElo "2764"]
[Result "1-0"]
[Round "1"]
[TimeControl "180+1"]
[Date "2023.10.31"]
[WhiteClock "0:00:59"]
[BlackClock "0:00:08"]
[Board "70"]

1. d4 {[%clk 0:02:35]}  Nf6 {[%clk 0:02:59]} 2. c4 {[%clk 0:02:34]}  g6 {[%clk 0:02:59]} 3. Nc3 {[%clk 0:02:35]}  Bg7 {[%clk 0:02:59]} 4. e4 {[%clk 0:02:33]}  d6 {[%clk 0:03:00]} 5. Be2 {[%clk 0:02:33]}  O-O {[%clk 0:02:59]} 6. Bg5 {[%clk 0:02:33]}  Na6 {[%clk 0:02:59]} 7. Qd2 {[%clk 0:02:32]}  e5 {[%clk 0:02:55]} 8. d5 {[%clk 0:02:31]}  Nc5 {[%clk 0:02:54]} 9. f3 {[%clk 0:02:30]}  a5 {[%clk 0:02:43]} 10. g4 {[%clk 0:02:24]}  h6 {[%clk 0:02:38]} 11. Be3 {[%clk 0:02:23]}  h5 {[%clk 0:02:37]} 12. h3 {[%clk 0:02:22]}  Nh7 {[%clk 0:02:28]} 13. O-O-O {[%clk 0:02:19]}  h4 {[%clk 0:02:28]} 14. Kb1 {[%clk 0:02:09]}  Bf6 {[%clk 0:02:27]} 15. Rh2 {[%clk 0:01:57]}  Bg5 {[%clk 0:02:27]} 16. f4 {[%clk 0:01:57]}  exf4 {[%clk 0:02:27]} 17. Bxf4 {[%clk 0:01:58]}  Re8 {[%clk 0:02:22]} 18. Nf3 {[%clk 0:01:55]}  Bxf4 {[%clk 0:02:14]} 19. Qxf4 {[%clk 0:01:56]}  Qe7 {[%clk 0:02:10]} 20. Bd3 {[%clk 0:01:49]}  g5 {[%clk 0:01:53]} 21. Qe3 {[%clk 0:01:37]}  f6 {[%clk 0:01:51]} 22. Rf2 {[%clk 0:01:35]}  Bd7 {[%clk 0:01:46]} 23. Bc2 {[%clk 0:01:34]}  Nf8 {[%clk 0:01:45]} 24. e5 {[%clk 0:01:28]}  dxe5 {[%clk 0:01:39]} 25. Nd2 {[%clk 0:01:29]}  e4 {[%clk 0:01:07]} 26. Ndxe4 {[%clk 0:01:27]}  Nxe4 {[%clk 0:01:02]} 27. Nxe4 {[%clk 0:01:28]}  Ra6 {[%clk 0:00:50]} 28. Qd4 {[%clk 0:01:25]}  Nh7 {[%clk 0:00:44]} 29. d6 {[%clk 0:01:20]}  Rxd6 {[%clk 0:00:35]} 30. Nxd6 {[%clk 0:01:20]}  cxd6 {[%clk 0:00:36]} 31. Qxd6 {[%clk 0:01:16]}  Qxd6 {[%clk 0:00:33]} 32. Rxd6 {[%clk 0:01:17]}  Bc6 {[%clk 0:00:27]} 33. Bxh7+ {[%clk 0:01:16]}  Kxh7 {[%clk 0:00:27]} 34. Rdxf6 {[%clk 0:01:17]}  Re3 {[%clk 0:00:26]} 35. Rf7+ {[%clk 0:01:07]}  Kg8 {[%clk 0:00:26]} 36. Kc1 {[%clk 0:01:04]}  Rxh3 {[%clk 0:00:25]} 37. R7f5 {[%clk 0:01:04]}  Rg3 {[%clk 0:00:18]} 38. Rxg5+ {[%clk 0:01:01]}  Kh7 {[%clk 0:00:18]} 39. Rh5+ {[%clk 0:01:01]}  Kg6 {[%clk 0:00:19]} 40. Rxh4 {[%clk 0:01:02]}  Kg5 {[%clk 0:00:19]} 41. Rh7 {[%clk 0:01:00]}  Be4 {[%clk 0:00:17]} 42. Re7 {[%clk 0:00:59]}  Bc6 {[%clk 0:00:15]} 43. Re5+ {[%clk 0:00:59]}  Kxg4 {[%clk 0:00:14]} 44. Rxa5 {[%clk 0:01:00]}  Rg1+ {[%clk 0:00:14]} 45. Kd2 {[%clk 0:01:00]}  Rb1 {[%clk 0:00:12]} 46. Kc3 {[%clk 0:01:00]}  Kg3 {[%clk 0:00:08]} 47. Raf5 {[%clk 0:00:59]} 1-0


[Site "https://www.chess.com"]

[Event "Titled Tuesday Blitz October 31 Early 2023"]
[White "ChessLebaneseSalah"]
[Black "Costachi, Mihnea"]
[BlackFideId "1217518"]
[WhiteElo "2419"]
[BlackElo "2763"]
[Result "0-1"]
[Round "1"]
[TimeControl "180+1"]
[Date "2023.10.31"]
[WhiteClock "0:00:04"]
[BlackClock "0:00:26"]
[Board "72"]

1. e4 {[%clk 0:02:59]}  g6 {[%clk 0:02:57]} 2. d4 {[%clk 0:02:59]}  Bg7 {[%clk 0:02:57]} 3. f4 {[%clk 0:02:58]}  c6 {[%clk 0:02:54]} 4. Nf3 {[%clk 0:02:56]}  d5 {[%clk 0:02:54]} 5. e5 {[%clk 0:02:53]}  Bg4 {[%clk 0:02:54]} 6. Be2 {[%clk 0:02:49]}  Nh6 {[%clk 0:02:53]} 7. Nbd2 {[%clk 0:02:37]}  Nf5 {[%clk 0:02:52]} 8. Nb3 {[%clk 0:02:35]}  e6 {[%clk 0:02:48]} 9. O-O {[%clk 0:02:33]}  O-O {[%clk 0:02:46]} 10. c3 {[%clk 0:02:21]}  b6 {[%clk 0:02:43]} 11. Ne1 {[%clk 0:02:19]}  Bxe2 {[%clk 0:02:39]} 12. Qxe2 {[%clk 0:02:19]}  Nd7 {[%clk 0:02:30]} 13. Nd3 {[%clk 0:02:15]}  a5 {[%clk 0:02:20]} 14. a4 {[%clk 0:02:07]}  c5 {[%clk 0:02:15]} 15. dxc5 {[%clk 0:01:40]}  Rc8 {[%clk 0:02:12]} 16. c6 {[%clk 0:01:30]}  Rxc6 {[%clk 0:02:09]} 17. g4 {[%clk 0:01:28]}  Ne7 {[%clk 0:02:05]} 18. Nd4 {[%clk 0:01:27]}  Rc8 {[%clk 0:02:01]} 19. f5 {[%clk 0:01:22]}  exf5 {[%clk 0:01:57]} 20. gxf5 {[%clk 0:01:17]}  gxf5 {[%clk 0:01:55]} 21. e6 {[%clk 0:01:11]}  Nc5 {[%clk 0:01:49]} 22. Nxc5 {[%clk 0:01:03]}  bxc5 {[%clk 0:01:44]} 23. exf7+ {[%clk 0:00:57]}  Rxf7 {[%clk 0:01:44]} 24. Ne6 {[%clk 0:00:49]}  Qb6 {[%clk 0:01:44]} 25. Nxg7 {[%clk 0:00:45]}  Rxg7+ {[%clk 0:01:44]} 26. Kh1 {[%clk 0:00:44]}  d4 {[%clk 0:01:22]} 27. cxd4 {[%clk 0:00:37]}  cxd4 {[%clk 0:01:18]} 28. Bf4 {[%clk 0:00:18]}  Qc6+ {[%clk 0:01:18]} 29. Qf3 {[%clk 0:00:17]}  Qxf3+ {[%clk 0:01:13]} 30. Rxf3 {[%clk 0:00:18]}  Ng6 {[%clk 0:01:14]} 31. Rd1 {[%clk 0:00:17]}  Rd7 {[%clk 0:01:10]} 32. h4 {[%clk 0:00:16]}  Nxh4 {[%clk 0:01:08]} 33. Rg3+ {[%clk 0:00:16]}  Ng6 {[%clk 0:01:08]} 34. Be5 {[%clk 0:00:16]}  Re8 {[%clk 0:00:49]} 35. Rxd4 {[%clk 0:00:13]}  Rxd4 {[%clk 0:00:42]} 36. Bxd4 {[%clk 0:00:14]}  Re4 {[%clk 0:00:42]} 37. Rd3 {[%clk 0:00:12]}  Nf4 {[%clk 0:00:42]} 38. Rd2 {[%clk 0:00:12]}  Ne6 {[%clk 0:00:42]} 39. Rg2+ {[%clk 0:00:11]}  Kf7 {[%clk 0:00:41]} 40. Bc3 {[%clk 0:00:11]}  Rxa4 {[%clk 0:00:42]} 41. Rf2 {[%clk 0:00:11]}  f4 {[%clk 0:00:41]} 42. Kg2 {[%clk 0:00:11]}  Kg6 {[%clk 0:00:33]} 43. Re2 {[%clk 0:00:10]}  Ng5 {[%clk 0:00:30]} 44. Rd2 {[%clk 0:00:08]}  f3+ {[%clk 0:00:29]} 45. Kf1 {[%clk 0:00:07]}  Ra1+ {[%clk 0:00:30]} 46. Kf2 {[%clk 0:00:05]}  Ne4+ {[%clk 0:00:30]} 47. Kxf3 {[%clk 0:00:06]}  Nxd2+ {[%clk 0:00:31]} 48. Bxd2 {[%clk 0:00:07]}  a4 {[%clk 0:00:30]} 49. Bc3 {[%clk 0:00:07]}  Kf5 {[%clk 0:00:28]} 50. Bb4 {[%clk 0:00:06]}  h5 {[%clk 0:00:27]} 51. Ba3 {[%clk 0:00:07]}  h4 {[%clk 0:00:27]} 52. Bb4 {[%clk 0:00:06]}  Rf1+ {[%clk 0:00:24]} 53. Kg2 {[%clk 0:00:06]}  Rc1 {[%clk 0:00:25]} 54. Kh2 {[%clk 0:00:04]}  Rc2+ {[%clk 0:00:26]} 0-1


[Site "https://www.chess.com"]

[Event "Titled Tuesday Blitz October 31 Early 2023"]
[White "Hamitevici, Vladimir"]
[Black "Miszler, Levente"]
[WhiteFideId "13902393"]
[BlackFideId "763276"]
[WhiteElo "2762"]
[BlackElo "2415"]
[Result "1/2-1/2"]
[Round "1"]
[TimeControl "180+1"]
[Date "2023.10.31"]
[WhiteClock "0:00:16"]
[BlackClock "0:00:05"]
[Board "73"]

1. a3 {[%clk 0:03:00]}  g6 {[%clk 0:02:53]} 2. d4 {[%clk 0:02:58]}  Bg7 {[%clk 0:02:53]} 3. Nf3 {[%clk 0:02:58]}  d5 {[%clk 0:02:52]} 4. e3 {[%clk 0:02:56]}  Nf6 {[%clk 0:02:52]} 5. c4 {[%clk 0:02:54]}  c5 {[%clk 0:02:49]} 6. dxc5 {[%clk 0:02:52]}  O-O {[%clk 0:02:45]} 7. Nc3 {[%clk 0:02:48]}  dxc4 {[%clk 0:02:43]} 8. Qxd8 {[%clk 0:02:46]}  Rxd8 {[%clk 0:02:44]} 9. Bxc4 {[%clk 0:02:45]}  Nbd7 {[%clk 0:02:40]} 10. c6 {[%clk 0:02:20]}  bxc6 {[%clk 0:02:39]} 11. O-O {[%clk 0:02:21]}  Nb6 {[%clk 0:02:35]} 12. Ba2 {[%clk 0:02:18]}  Nbd5 {[%clk 0:02:34]} 13. Ne5 {[%clk 0:02:14]}  Bb7 {[%clk 0:02:18]} 14. Nxf7 {[%clk 0:02:05]}  Kxf7 {[%clk 0:02:11]} 15. e4 {[%clk 0:02:05]}  e6 {[%clk 0:02:04]} 16. exd5 {[%clk 0:02:05]}  cxd5 {[%clk 0:02:04]} 17. Bd2 {[%clk 0:01:55]}  Ba6 {[%clk 0:01:58]} 18. Rfe1 {[%clk 0:01:55]}  Rab8 {[%clk 0:01:58]} 19. b4 {[%clk 0:01:53]}  Rdc8 {[%clk 0:01:58]} 20. Rac1 {[%clk 0:01:50]}  Bc4 {[%clk 0:01:59]} 21. Bf4 {[%clk 0:01:41]}  Rb6 {[%clk 0:01:52]} 22. Na4 {[%clk 0:01:29]}  Ra6 {[%clk 0:01:28]} 23. Bxc4 {[%clk 0:01:28]}  Rxc4 {[%clk 0:01:22]} 24. Rxc4 {[%clk 0:01:25]}  dxc4 {[%clk 0:01:22]} 25. Nc5 {[%clk 0:01:25]}  Rxa3 {[%clk 0:01:21]} 26. Nxe6 {[%clk 0:01:25]}  Nd5 {[%clk 0:01:17]} 27. Nd8+ {[%clk 0:01:21]}  Kg8 {[%clk 0:01:01]} 28. Bd6 {[%clk 0:00:58]}  Ra1 {[%clk 0:00:52]} 29. Rxa1 {[%clk 0:00:45]}  Bxa1 {[%clk 0:00:53]} 30. Nc6 {[%clk 0:00:45]}  Kf7 {[%clk 0:00:41]} 31. Be5 {[%clk 0:00:38]}  Bxe5 {[%clk 0:00:38]} 32. Nxe5+ {[%clk 0:00:37]}  Ke6 {[%clk 0:00:38]} 33. Nxc4 {[%clk 0:00:38]}  Nxb4 {[%clk 0:00:39]} 34. h4 {[%clk 0:00:36]}  Nc6 {[%clk 0:00:40]} 35. Kf1 {[%clk 0:00:35]}  a5 {[%clk 0:00:40]} 36. Ke2 {[%clk 0:00:35]}  Kf5 {[%clk 0:00:37]} 37. g3 {[%clk 0:00:30]}  a4 {[%clk 0:00:37]} 38. Nd6+ {[%clk 0:00:24]}  Ke5 {[%clk 0:00:37]} 39. Nf7+ {[%clk 0:00:23]}  Kd4 {[%clk 0:00:36]} 40. Kd2 {[%clk 0:00:21]}  a3 {[%clk 0:00:35]} 41. Kc2 {[%clk 0:00:20]}  Nb4+ {[%clk 0:00:31]} 42. Kb3 {[%clk 0:00:20]}  a2 {[%clk 0:00:31]} 43. Kb2 {[%clk 0:00:21]}  Kd3 {[%clk 0:00:25]} 44. Ng5 {[%clk 0:00:19]}  h5 {[%clk 0:00:23]} 45. f3 {[%clk 0:00:16]}  Ke3 {[%clk 0:00:22]} 46. g4 {[%clk 0:00:17]}  Kf4 {[%clk 0:00:21]} 47. gxh5 {[%clk 0:00:16]}  gxh5 {[%clk 0:00:22]} 48. Ne4 {[%clk 0:00:14]}  Kxf3 {[%clk 0:00:06]} 49. Nf6 {[%clk 0:00:13]}  Kg3 {[%clk 0:00:06]} 50. Nxh5+ {[%clk 0:00:14]}  Kxh4 {[%clk 0:00:06]} 51. Nf4 {[%clk 0:00:14]}  Kg4 {[%clk 0:00:07]} 52. Nd3 {[%clk 0:00:15]}  Nxd3+ {[%clk 0:00:05]} 53. Kxa2 {[%clk 0:00:16]} 1/2-1/2


[Site "https://www.chess.com"]

[Event "Titled Tuesday Blitz October 31 Early 2023"]
[White "Santos Flores, Alberto"]
[Black "Gorovets, Andrey"]
[WhiteFideId "3601234"]
[BlackFideId "13504037"]
[WhiteElo "2415"]
[BlackElo "2761"]
[Result "1-0"]
[Round "1"]
[TimeControl "180+1"]
[Date "2023.10.31"]
[WhiteClock "0:00:17"]
[BlackClock "0:00:08"]
[Board "74"]

1. e4 {[%clk 0:03:00]}  c5 {[%clk 0:02:58]} 2. Nf3 {[%clk 0:03:00]}  Nc6 {[%clk 0:02:59]} 3. Nc3 {[%clk 0:03:00]}  Nf6 {[%clk 0:02:58]} 4. d4 {[%clk 0:02:59]}  cxd4 {[%clk 0:02:58]} 5. Nxd4 {[%clk 0:03:00]}  e5 {[%clk 0:02:58]} 6. Ndb5 {[%clk 0:03:00]}  d6 {[%clk 0:02:58]} 7. Bg5 {[%clk 0:03:01]}  a6 {[%clk 0:02:59]} 8. Na3 {[%clk 0:03:01]}  Be6 {[%clk 0:03:00]} 9. Nc4 {[%clk 0:03:01]}  Rb8 {[%clk 0:02:55]} 10. Ne3 {[%clk 0:02:57]}  Be7 {[%clk 0:02:52]} 11. Bxf6 {[%clk 0:02:57]}  Bxf6 {[%clk 0:02:53]} 12. Ncd5 {[%clk 0:02:57]}  Bg5 {[%clk 0:02:52]} 13. Bc4 {[%clk 0:02:54]}  g6 {[%clk 0:02:43]} 14. c3 {[%clk 0:02:48]}  O-O {[%clk 0:02:43]} 15. Bb3 {[%clk 0:02:45]}  Kh8 {[%clk 0:02:40]} 16. O-O {[%clk 0:02:36]}  Bh6 {[%clk 0:02:30]} 17. Qd3 {[%clk 0:02:22]}  f5 {[%clk 0:02:24]} 18. exf5 {[%clk 0:02:22]}  gxf5 {[%clk 0:02:25]} 19. f4 {[%clk 0:02:22]}  e4 {[%clk 0:02:22]} 20. Qe2 {[%clk 0:02:19]}  Bg7 {[%clk 0:02:11]} 21. Rad1 {[%clk 0:02:17]}  b5 {[%clk 0:02:10]} 22. Kh1 {[%clk 0:02:14]}  b4 {[%clk 0:02:09]} 23. Qxa6 {[%clk 0:02:09]}  Rc8 {[%clk 0:01:50]} 24. h3 {[%clk 0:01:46]}  bxc3 {[%clk 0:01:48]} 25. bxc3 {[%clk 0:01:47]}  Nb8 {[%clk 0:01:41]} 26. Qb5 {[%clk 0:01:36]}  Nd7 {[%clk 0:01:41]} 27. Nb6 {[%clk 0:00:47]}  Rc5 {[%clk 0:01:27]} 28. Qa6 {[%clk 0:00:25]}  Bxb3 {[%clk 0:00:43]} 29. Rxd6 {[%clk 0:00:25]}  Rxc3 {[%clk 0:00:33]} 30. Nxd7 {[%clk 0:00:22]}  Rd3 {[%clk 0:00:08]} 31. Rxd3 {[%clk 0:00:17]}  exd3 {[%clk 0:00:08]} 32. Nxf8 {[%clk 0:00:17]} 1-0


[Site "https://www.chess.com"]